fUSD/lending_fUSD_20250223
["ID","MTS","AMOUNT","RATE_DAILY","PERIOD"]
[354202097,1740345043459,-500.0,0.00016438,2]
[354202099,1740345043468,-423.83705298,0.00016438,2]
[354202102,1740345043491,-76.16294702,0.00016438,2]
[354202104,1740345043500,-524.6,0.00016438,2]
[354202106,1740345043509,-500.0,0.00016438,2]
[354202108,1740345043519,-500.0,0.00016438,2]
[354202110,1740345043528,-961.08705298,0.00016438,2]
[354202112,1740345043539,-630.10294702,0.00016438,2]
[354202114,1740345043548,-656.79,0.00016438,2]
[354202131,1740345043702,-500.0,0.00016438,2]
[354202132,1740345043712,-500.0,0.00016438,2]
[354202133,1740345043721,-585.26,0.00016438,2]
[354202134,1740345043731,-533.17,0.00016438,2]
[354202135,1740345043740,-500.0,0.00016438,2]
[354202136,1740345043749,-838.82,0.00016438,2]
[354202137,1740345043759,-500.0,0.00016438,2]
[354202139,1740345043768,-1928.74,0.00016438,2]
[354202141,1740345043778,-622.66,0.00016438,2]
[354202143,1740345043787,-576.82,0.00016438,2]
[354202145,1740345043797,-500.0,0.00016438,2]
[354202147,1740345043807,-1835.38,0.00016438,2]
[354202149,1740345043816,-654.95,0.00016438,2]
[354202151,1740345043825,-500.0,0.00016438,2]
[354202153,1740345043834,-500.0,0.00016438,2]
[354202155,1740345043843,-1026.3,0.00016438,2]
[354202157,1740345043853,-2627.57,0.00016438,2]
[354202159,1740345043863,-728.64,0.00016438,2]
[354202161,1740345043872,-913.08,0.00016438,2]
[354202163,1740345043882,-500.0,0.00016438,2]
[354202165,1740345043891,-866.56,0.00016438,2]
[354202167,1740345043900,-500.0,0.00016438,2]
[354202169,1740345043909,-595.19,0.00016438,2]
[354202171,1740345043918,-640.62,0.00016438,2]
[354202173,1740345043927,-500.0,0.00016438,2]
[354202175,1740345043936,-743.47,0.00016438,2]
[354202177,1740345043945,-500.0,0.00016438,2]
[354202179,1740345043954,-919.26,0.00016438,2]
[354202181,1740345043968,-3313.8,0.00016438,2]
[354202183,1740345043977,-1860.32,0.00016438,2]
[354202185,1740345043986,-500.0,0.00016438,2]
[354202187,1740345043995,-721.3,0.00016438,2]
[354202189,1740345044005,-500.0,0.00016438,2]
[354202191,1740345044015,-753.4,0.00016438,2]
[354202193,1740345044024,-500.0,0.00016438,2]
[354202195,1740345044033,-654.25,0.00016438,2]
[354202197,1740345044043,-1809.13,0.00016438,2]
[354202199,1740345044052,-1620.73,0.00016438,2]
[354202201,1740345044061,-500.0,0.00016438,2]
[354202203,1740345044070,-1901.6,0.00016438,2]
[354202205,1740345044079,-580.94,0.00016438,2]
[354202207,1740345044088,-500.0,0.00016438,2]
[354202209,1740345044097,-500.0,0.00016438,2]
[354202211,1740345044107,-500.0,0.00016438,2]
[354202213,1740345044116,-500.0,0.00016438,2]
[354202215,1740345044126,-593.75,0.00016438,2]
[354202217,1740345044135,-1019.87,0.00016438,2]
[354202219,1740345044145,-500.0,0.00016438,2]
[354202221,1740345044154,-728.57,0.00016438,2]
[354202223,1740345044163,-500.0,0.00016438,2]
[354202225,1740345044172,-1672.83,0.00016438,2]
[354202227,1740345044181,-1893.59,0.00016438,2]
[354202229,1740345044192,-1107.45,0.00016438,2]
[354202231,1740345044201,-500.0,0.00016438,2]
[354202233,1740345044210,-621.50699706,0.00016438,2]
[354202235,1740345044219,-1568.37,0.00016438,2]
[354202237,1740345044228,-500.0,0.00016438,2]
[354202239,1740345044237,-500.0,0.00016438,2]
[354202241,1740345044246,-3020.53,0.00016438,2]
[354202243,1740345044255,-500.0,0.00016438,2]
[354202245,1740345044264,-500.0,0.00016438,2]
[354202247,1740345044273,-500.0,0.00016438,2]
[354202249,1740345044282,-1198.83,0.00016438,2]
[354202251,1740345044291,-500.0,0.00016438,2]
[354202253,1740345044300,-500.0,0.00016438,2]
[354202255,1740345044309,-500.0,0.00016438,2]
[354202257,1740345044318,-1378.99,0.00016438,2]
[354202259,1740345044327,-500.0,0.00016438,2]
[354202261,1740345044336,-1083.24,0.00016438,2]
[354202263,1740345044346,-500.0,0.00016438,2]
[354202265,1740345044355,-2411.17,0.00016438,2]
[354202267,1740345044364,-500.0,0.00016438,2]
[354202269,1740345044374,-2012.52,0.00016438,2]
[354202271,1740345044383,-1111.96,0.00016438,2]
[354202273,1740345044392,-500.0,0.00016438,2]
[354202275,1740345044402,-4665.66,0.00016438,2]
[354202277,1740345044411,-967.17,0.00016438,2]
[354202279,1740345044420,-1748.92,0.00016438,2]
[354202281,1740345044430,-500.0,0.00016438,2]
[354202283,1740345044439,-1132.44,0.00016438,2]
[354202286,1740345044450,-3030.2,0.00016438,2]
[354202288,1740345044460,-500.0,0.00016438,2]
[354202290,1740345044470,-500.0,0.00016438,2]
[354202292,1740345044479,-1346.9,0.00016438,2]
[354202294,1740345044488,-653.86,0.00016438,2]
[354202295,1740345044498,-500.0,0.00016438,2]
[354202298,1740345044507,-500.0,0.00016438,2]
[354202300,1740345044516,-500.0,0.00016438,2]
[354202302,1740345044526,-3294.35,0.00016438,2]
[354202303,1740345044535,-500.0,0.00016438,2]
[354202306,1740345044544,-6794.58,0.00016438,2]
[354202308,1740345044553,-500.0,0.00016438,2]
[354202310,1740345044562,-791.01,0.00016438,2]
[354202312,1740345044572,-805.25,0.00016438,2]
[354202314,1740345044582,-500.0,0.00016438,2]
[354202316,1740345044591,-2962.3,0.00016438,2]
[354202318,1740345044601,-500.0,0.00016438,2]
[354202320,1740345044612,-500.0,0.00016438,2]
[354202322,1740345044622,-500.0,0.00016438,2]
[354202324,1740345044631,-714.83,0.00016438,2]
[354202326,1740345044641,-487.98112175,0.00016438,2]
[354202328,1740345044651,-792.63,0.00016438,2]
[354202330,1740345044661,-500.0,0.00016438,2]
[354202332,1740345044671,-703.66,0.00016438,2]
[354202334,1740345044681,-1590.48,0.00016438,2]
[354202336,1740345044690,-213.37108318,0.00016438,2]
[354202338,1740345044700,-985.44,0.00016438,2]
[354202340,1740345044709,-8963.44,0.00016438,2]
[354202342,1740345044719,-1958.54,0.00016438,2]
[354202344,1740345044728,-1065.77,0.00016438,2]
[354202346,1740345044737,-603.49,0.00016438,2]
[354202349,1740345044747,-500.0,0.00016438,2]
[354202351,1740345044758,-516.31,0.00016438,2]
[354202353,1740345044767,-849.54,0.00016438,2]
[354202355,1740345044777,-639.44,0.00016438,2]
[354202357,1740345044786,-1551.07,0.00016438,2]
[354202359,1740345044795,-681.58,0.00016438,2]
[354202361,1740345044804,-249.84685099,0.00016438,2]
[354202412,1740345045332,-507.84,0.00016338,2]
[354202414,1740345045342,-250.15314901,0.00016438,2]
[354202416,1740345045351,-500.0,0.00016438,2]
[354202418,1740345045360,-2851.75,0.00016438,2]
[354202421,1740345045370,-500.0,0.00016438,2]
[354202422,1740345045379,-1560.36,0.00016438,2]
[354202425,1740345045389,-500.0,0.00016438,2]
[354202427,1740345045398,-2061.33,0.00016438,2]
[354202429,1740345045408,-826.05401928,0.00016438,2]
[354202431,1740345045425,-809.52598072,0.00016438,2]
[354202433,1740345045434,-500.0,0.00016438,2]
[354202435,1740345045444,-1139.28,0.00016438,2]
[354202437,1740345045454,-500.0,0.00016438,2]
[354202439,1740345045463,-335.02248713,0.00016438,2]
[354202442,1740345045475,-551.99751287,0.00016438,2]
[354202444,1740345045484,-2100.23,0.00016438,2]
[354202446,1740345045493,-527.54925904,0.00016438,2]
[354202447,1740345045502,-167.20819809,0.00016438,2]
[354202450,1740345045514,-2521.86180191,0.00016438,2]
[354202452,1740345045523,-272.88508862,0.00016438,2]
[354202455,1740345045540,-372.75491138,0.00016438,2]
[354202457,1740345045550,-654.8,0.00016438,2]
[354202459,1740345045559,-1927.93,0.00016438,2]
[354202460,1740345045569,-500.0,0.00016438,2]
[354202463,1740345045578,-500.0,0.00016438,2]
[354202464,1740345045587,-1945.19856032,0.00016438,2]
[354202467,1740345045599,-1144.81143968,0.00016438,2]
[354202469,1740345045608,-500.0,0.00016438,2]
[354202471,1740345045617,-1799.89,0.00016438,2]
[354202473,1740345045626,-357.20213622,0.00016438,2]
[354202475,1740345045638,-2971.92786378,0.00016438,2]
[354202477,1740345045647,-500.0,0.00016438,2]
[354202479,1740345045656,-500.0,0.00016438,2]
[354202481,1740345045665,-694.87,0.00016438,2]
[354202483,1740345045674,-569.37,0.00016438,2]
[354202485,1740345045683,-510.36759537,0.00016438,2]
[354202653,1740345046965,-790.51,0.00016428,2]
[354202655,1740345046977,-2705.51240463,0.00016438,2]
[354202657,1740345046987,-640.43,0.00016438,2]
[354202659,1740345046997,-1434.00213505,0.00016438,2]
[354202661,1740345047009,-1055.21291166,0.00016438,2]
[354202664,1740345047022,-1486.5547606,0.00016438,2]
[354202666,1740345047038,-640.29019269,0.00016438,2]
[354202668,1740345047050,-500.0,0.00016438,2]
[354202670,1740345047060,-500.0,0.00016438,2]
[354202672,1740345047069,-1388.68879228,0.00016438,2]
[354202675,1740345047087,-1042.60120772,0.00016438,2]
[354202677,1740345047097,-500.0,0.00016438,2]
[354202679,1740345047106,-2436.17,0.00016438,2]
[354202681,1740345047116,-3279.78,0.00016438,2]
[354202683,1740345047125,-626.69,0.00016438,2]
[354202685,1740345047134,-500.0,0.00016438,2]
[354202687,1740345047143,-500.0,0.00016438,2]
[354202689,1740345047153,-1456.53,0.00016438,2]
[354202691,1740345047162,-500.0,0.00016438,2]
[354202693,1740345047171,-1153.25,0.00016438,2]
[354202695,1740345047180,-1818.57,0.00016438,2]
[354202697,1740345047189,-1757.51,0.00016438,2]
[354202699,1740345047198,-500.0,0.00016438,2]
[354202701,1740345047207,-500.0,0.00016438,2]
[354202703,1740345047216,-500.0,0.00016438,2]
[354202705,1740345047225,-500.0,0.00016438,2]
[354202707,1740345047235,-500.0,0.00016438,2]
[354202709,1740345047244,-2547.69,0.00016438,2]
[354202711,1740345047253,-3451.41,0.00016438,2]
[354202713,1740345047263,-500.0,0.00016438,2]
[354202715,1740345047273,-3107.4,0.00016438,2]
[354202717,1740345047282,-500.0,0.00016438,2]
[354202719,1740345047291,-500.0,0.00016438,2]
[354202721,1740345047300,-1579.98,0.00016438,2]
[354202723,1740345047309,-500.0,0.00016438,2]
[354202725,1740345047318,-1567.84,0.00016438,2]
[354202727,1740345047328,-1005.75,0.00016438,2]
[354202729,1740345047338,-500.0,0.00016438,2]
[354202731,1740345047347,-1969.68,0.00016438,2]
[354202733,1740345047356,-2684.35,0.00016438,2]
[354202735,1740345047365,-1921.25,0.00016438,2]
[354202737,1740345047374,-500.0,0.00016438,2]
[354202739,1740345047383,-684.52,0.00016438,2]
[354202741,1740345047392,-830.43,0.00016438,2]
[354202743,1740345047402,-673.63,0.00016438,2]
[354202745,1740345047411,-1422.35645862,0.00016438,2]
[354203042,1740345431037,-166.282932,0.00010958,2]
[354203043,1740345431062,-150.071172,0.00010958,2]
[354203044,1740345431086,-251.862616,0.00010958,2]
[354203045,1740345431110,-158.211278,0.00010958,2]
[354203046,1740345431135,-150.071172,0.00011041,2]
[354203047,1740345431158,-150.071172,0.00011205,2]
[354203048,1740345431182,-166.282932,0.00011287,2]
[354203049,1740345431206,-150.071172,0.00011287,2]
[354203050,1740345431574,-150.071172,0.00011369,2]
[354203051,1740345431611,-150.0,0.00012054,2]
[354203052,1740345431634,-674.26,0.00015508,2]
[354203053,1740345431659,-57.744382,0.00015556,2]
[354203054,1740345536909,298.05,8.767e-05,2]
[354203056,1740345659834,207.022406,0.0002,120]
[354203071,1740346232488,-150.0,9.999e-05,2]
[354203072,1740346232498,-514.24310131,0.0001,2]
[354203073,1740346232510,-401.7502562,0.0001,2]
[354203074,1740346232522,-100012.29125067,0.0001,2]
[354203075,1740346232530,-26384.87415846,0.0001,2]
[354203076,1740346232539,-460.20870484,0.00010136,2]
[354203077,1740346232549,-251.862616,0.00010958,2]
[354203078,1740346232558,-158.211273,0.00010958,2]
[354203079,1740346232567,-251.862616,0.00010958,2]
[354203080,1740346232577,-158.211273,0.00010958,2]
[354203081,1740346232586,-251.862616,0.00010958,2]
[354203082,1740346232596,-158.211273,0.00010958,2]
[354203083,1740346232605,-158.211273,0.00010958,2]
[354203084,1740346232615,-251.862616,0.00010958,2]
[354203085,1740346232624,-158.211273,0.00010958,2]
[354203086,1740346232633,-251.862616,0.00010958,2]
[354203087,1740346232642,-194.242952,0.00010958,2]
[354203088,1740346232652,-152.251963,0.00010958,2]
[354203089,1740346232661,-157.109847,0.00010958,2]
[354203090,1740346232671,-212.227718,0.00010958,2]
[354203091,1740346232680,-157.477489,0.00010958,2]
[354203092,1740346232690,-1989.89327338,0.00011,2]
[354203093,1740346232699,-653.61,0.00013202,2]
[354203094,1740346232709,-5551.0,0.000145,3]
[354203095,1740346232719,-336.6,0.00014859,3]
[354203096,1740346232728,-5551.0,0.000149,5]
[354203097,1740346232741,-150.0,0.00014992,2]
[354203098,1740346232751,-150.0,0.00014992,2]
[354203099,1740346232760,-150.0,0.00014992,2]
[354203100,1740346232769,-440.33,0.00015,2]
[354203101,1740346232778,-684.35170851,0.00015056,2]
[354203102,1740346232787,-36158.46907015,0.000151,2]
[354203103,1740346232796,-181.81,0.00015156,2]
[354203104,1740346232805,-289.21,0.00015395,2]
[354203105,1740346232815,-250.0,0.00015417,2]
[354203106,1740346232824,-653.61,0.00015466,2]
[354203107,1740346232833,-217.44,0.00015507,2]
[354203108,1740346232842,-107.515618,0.00015556,2]
[354203109,1740346232851,-499.15,0.00015598,2]
[354203110,1740346232861,-500.38,0.00015613,2]
[354203111,1740346232870,-150.0,0.00015825,2]
[354203113,1740346232880,-151.19,0.00016082,2]
[354203115,1740346232888,-151.21,0.00016082,2]
[354203117,1740346232897,-384.0122394,0.00016174,2]
[354203119,1740346232906,-6625.9571,0.0001618,2]
[354203121,1740346232915,-31069.2857,0.0001618,2]
[354203123,1740346232925,-6472.15237562,0.00016237,2]
[354203125,1740346232935,-77963.83491259,0.0001628,2]
[354203127,1740346232944,-2506.89510933,0.0001628,2]
[354203148,1740346238330,-684.35170845,0.00015244,2]
[354203149,1740346238339,-684.35170845,0.00015432,2]
[354203150,1740346238348,-19243.44743073,0.0001628,2]
[354203151,1740346238359,-1297.10617831,0.0001628,2]
[354203152,1740346238445,-5552.0,0.0001628,2]
[354203287,1740346240733,-4186.55850133,0.0001628,2]
[354203288,1740346240850,-3114.63211861,0.0001628,2]
[354203289,1740346240910,-2600.0,0.0001628,2]
[354203531,1740346243439,-151.98,0.00015244,2]
[354203533,1740346243449,-635.56574271,0.0001562,2]
[354203535,1740346243461,-48.78596574,0.0001562,2]
[354203537,1740346243471,-46455.993963,0.0001628,2]
[354203539,1740346243480,-2052.0,0.000163,2]
[354203541,1740346243489,-264.21,0.00016329,2]
[354203543,1740346243499,-439.29,0.00016329,2]
[354203545,1740346243508,-150.0,0.00016329,2]
[354203547,1740346243517,-917.87841504,0.00016338,2]
[354203549,1740346243526,-321.09915568,0.00016338,2]
[354203551,1740346243535,-500.0,0.00016338,2]
[354203553,1740346243544,-7500.0,0.00016338,2]
[354203555,1740346243553,-1943.834,0.00016379,2]
[354203557,1740346243563,-165.375,0.00016379,2]
[354203559,1740346243572,-917.87841504,0.00016384,2]
[354203561,1740346243582,-200.0,0.00016428,2]
[354203563,1740346243591,-177.39420077,0.00016428,2]
[354203565,1740346243600,-495.35,0.00016428,2]
[354203567,1740346243608,-917.87841504,0.00016429,2]
[354203569,1740346243618,-500.0,0.00016437,2]
[354203571,1740346243627,-232.53932461,0.00016437,2]
[354203573,1740346243636,-31301.49314506,0.00016438,5]
[354203575,1740346243648,-23830.0,0.00016438,5]
[354203578,1740346243664,-462.72,0.00016438,5]
[354203580,1740346243675,-1907.6,0.00016438,5]
[354203593,1740346243795,-0.63864675,0.00016438,5]
[354203795,1740346246565,-493.06,0.00015244,2]
[354203796,1740346246575,-150.79,0.00015744,2]
[354203797,1740346246584,-1925.15,0.00016438,5]
[354203799,1740346638509,155.26,8.767e-05,2]
[354203802,1740347290621,10562.44793692,0.0002046,120]
[354203803,1740347290742,10562.44793692,0.0002046,120]
[354203804,1740347291034,10562.44793692,0.0002046,120]
[354203805,1740347291308,10562.44793692,0.0002046,120]
[354203806,1740347298297,8294.72264905,0.0002046,120]
[354203807,1740347298358,8294.72264905,0.0002046,120]
[354203808,1740347298495,8294.72264905,0.0002046,120]
[354203809,1740347298788,8294.72264905,0.0002046,120]
[354203810,1740347304608,200.0,0.0002046,120]
[354203811,1740347305007,200.0,0.0002046,120]
[354203812,1740347305295,200.0,0.0002046,120]
[354203816,1740347310666,200.0,0.0002046,120]
[354203817,1740347318824,3468.27597582,0.0002046,120]
[354203818,1740347318882,3468.27597582,0.0002046,120]
[354203819,1740347319078,3468.27597582,0.0002046,120]
[354203820,1740347329692,322.73192223,0.0002046,120]
[354203821,1740347329996,322.73192223,0.0002046,120]
[354203822,1740347330261,322.73192223,0.0002046,120]
[354203825,1740347330520,322.73192223,0.0002046,120]
[354203828,1740347361136,867.06899395,0.00020463,120]
[354203829,1740347361321,867.06899395,0.00020463,120]
[354203830,1740347361599,867.06899395,0.00020463,120]
[354203831,1740347361913,867.06899395,0.00020463,120]
[354203842,1740347431574,-201.29657453,0.00010858,2]
[354203843,1740347431584,-150.0,0.00010932,2]
[354203844,1740347431593,-150.0,0.00010945,2]
[354203845,1740347431602,-300.0,0.00010957,2]
[354203846,1740347431612,-151.121887,0.00010958,2]
[354203847,1740347431621,-162.532358,0.00010958,2]
[354203848,1740347431631,-194.242954,0.00010958,2]
[354203849,1740347431640,-150.02987,0.00010958,2]
[354203850,1740347431649,-152.251966,0.00010958,2]
[354203851,1740347431658,-194.242952,0.00010958,2]
[354203852,1740347431667,-152.251963,0.00010958,2]
[354203853,1740347431676,-194.242953,0.00010958,2]
[354203854,1740347431685,-194.242952,0.00010958,2]
[354203855,1740347431694,-153.555638,0.00010958,2]
[354203856,1740347431703,-194.242953,0.00010958,2]
[354203857,1740347431712,-152.251963,0.00010958,2]
[354203858,1740347431721,-153.561051,0.00010958,2]
[354203859,1740347431731,-194.242952,0.00010958,2]
[354203860,1740347431740,-194.242953,0.00010958,2]
[354203861,1740347431749,-152.251964,0.00010958,2]
[354203862,1740347431758,-194.242952,0.00010958,2]
[354203863,1740347431767,-153.555638,0.00010958,2]
[354203864,1740347431776,-281.236731,0.00010958,2]
[354203865,1740347431784,-193.395304,0.00010958,2]
[354203866,1740347431793,-155.989735,0.00010958,2]
[354203867,1740347431803,-162.532358,0.00011041,2]
[354203868,1740347431812,-162.532358,0.00011123,2]
[354203869,1740347431821,-150.02987,0.00011123,2]
[354203870,1740347431830,-151.121887,0.00011205,2]
[354203871,1740347431839,-162.532358,0.00011205,2]
[354203872,1740347431848,-162.532358,0.00011287,2]
[354203873,1740347431857,-151.121887,0.00011369,2]
[354203874,1740347431866,-162.532358,0.00011369,2]
[354203875,1740347431875,-150.02987,0.00011369,2]
[354203876,1740347431886,-150.0,0.00012025,2]
[354203877,1740347431895,-500.0,0.00012025,2]
[354203878,1740347431904,-150.0,0.00012025,2]
[354203879,1740347431915,-588.24,0.00013379,2]
[354203880,1740347431924,-6493.68725089,0.00014973,2]
[354203881,1740347431941,-691.94858545,0.00014973,2]
[354203882,1740347431952,-7358.88416366,0.00014973,2]
[354203883,1740347431961,-150.0,0.00014991,2]
[354203884,1740347431970,-150.0,0.00014992,2]
[354203885,1740347431979,-150.0,0.00014992,2]
[354203886,1740347431988,-274.61593233,0.00014992,2]
[354203887,1740347431997,-150.0,0.00014992,2]
[354203888,1740347432008,-150.00000001,0.00014992,2]
[354203889,1740347432018,-150.0,0.00014992,2]
[354203890,1740347432027,-150.0,0.00014996,2]
[354203891,1740347432045,-464.22,0.00015015,2]
[354203893,1740347432056,-1000.0,0.00015338,2]
[354203895,1740347432065,-250.0,0.00015417,2]
[354203896,1740347432074,-588.24,0.00015643,2]
[354203898,1740347432084,-502.67,0.00015808,2]
[354203899,1740347432093,-150.0,0.00015825,2]
[354203900,1740347432102,-200.0,0.000159,5]
[354203901,1740347432111,-166.67,0.00015905,2]
[354203902,1740347432121,-500.0,0.0001608,2]
[354203903,1740347432130,-280.43,0.00016192,2]
[354203904,1740347432139,-278.16,0.00016192,2]
[354203905,1740347432148,-278.16,0.00016192,2]
[354203906,1740347432157,-278.16,0.00016192,2]
[354203907,1740347432166,-278.16,0.00016192,2]
[354203908,1740347432175,-278.16,0.00016192,2]
[354203909,1740347432184,-278.16,0.00016192,2]
[354203910,1740347432194,-278.16,0.00016192,2]
[354203911,1740347432203,-278.16,0.00016192,2]
[354203912,1740347432212,-278.16,0.00016192,2]
[354203913,1740347432221,-278.16,0.00016192,2]
[354203914,1740347432231,-278.16,0.00016192,2]
[354203915,1740347432240,-278.16,0.00016192,2]
[354203916,1740347432249,-278.16,0.00016192,2]
[354203918,1740347432258,-278.16,0.00016192,2]
[354203919,1740347432269,-278.16,0.00016192,2]
[354203920,1740347432280,-278.16,0.00016192,2]
[354203921,1740347432290,-278.16,0.00016192,2]
[354203922,1740347432301,-278.16,0.00016192,2]
[354203923,1740347432313,-278.16,0.00016192,2]
[354203924,1740347432324,-278.16,0.00016192,2]
[354203925,1740347432333,-277.38,0.00016192,2]
[354203926,1740347432342,-278.16,0.00016192,2]
[354203927,1740347432352,-278.16,0.00016192,2]
[354203928,1740347432360,-278.16,0.00016192,2]
[354203929,1740347432370,-201.29657453,0.00016238,2]
[354203930,1740347432380,-1342.9371,0.00016338,2]
[354203931,1740347432390,-1567.8337,0.00016338,2]
[354203932,1740347432399,-24257.1425295,0.00016338,2]
[354203933,1740347432412,-4440.49125724,0.00016338,2]
[354203934,1740347432435,-2359.55431326,0.00016338,2]
[354203935,1740347432445,-1397.1313,0.00016338,2]
[354203936,1740347432454,-724.2106,0.00016338,2]
[354203937,1740347432463,-312.9035,0.00016338,2]
[354203938,1740347432472,-189.71550298,0.00016338,2]
[354203939,1740347432482,-163.30428927,0.00016338,2]
[354203940,1740347432491,-685.18049449,0.00016338,2]
[354203941,1740347432503,-282.7525456,0.00016338,2]
[354203942,1740347432513,-1027.67511535,0.00016338,2]
[354203943,1740347432525,-645.10404456,0.00016338,2]
[354203944,1740347432534,-525.1536871,0.00016338,2]
[354203945,1740347432567,-1024.8463129,0.00016338,2]
[354203946,1740347432577,-7500.0,0.00016338,2]
[354203947,1740347432588,-738.3979,0.00016338,2]
[354203948,1740347432598,-36291.5179,0.00016338,2]
[354203949,1740347432607,-7246.35083783,0.00016338,2]
[354203950,1740347432619,-2530.0,0.00016338,2]
[354203951,1740347432631,-725.4122558,0.00016338,2]
[354203952,1740347432649,-113.46110637,0.00016338,2]
[354203953,1740347432658,-1478.21494838,0.00016338,2]
[354203954,1740347432670,-286.24606077,0.00016338,2]
[354203955,1740347432681,-9806.06396985,0.00016338,2]
[354203956,1740347432692,-2039.72645244,0.00016338,2]
[354203957,1740347432704,-5008.0021072,0.00016338,2]
[354203958,1740347432716,-56623.97166136,0.00016338,2]
[354203959,1740347432725,-432.55648003,0.00016383,2]
[354203960,1740347432735,-500.0,0.000164,5]
[354203961,1740347432744,-200.0,0.00016428,2]
[354203962,1740347432754,-1555.068,0.00016437,2]
[354203963,1740347432763,-165.375,0.00016437,2]
[354203964,1740347432773,-1000.0,0.00016437,2]
[354203965,1740347432782,-1000.0,0.00016437,2]
[354203966,1740347432791,-1000.0,0.00016437,2]
[354203967,1740347432802,-1978.62624,0.00016437,2]
[354203968,1740347432811,-500.0,0.00016438,2]
[354203969,1740347432820,-500.0,0.00016438,2]
[354203970,1740347432830,-785.4,0.00016438,2]
[354203971,1740347432839,-500.0,0.00016438,2]
[354203972,1740347432849,-500.0,0.00016438,2]
[354203973,1740347432859,-887.93,0.00016438,2]
[354203974,1740347432869,-500.0,0.00016438,2]
[354203975,1740347432879,-273.86433193,0.00016438,2]
[354203976,1740347432896,-390.03566807,0.00016438,2]
[354203977,1740347432906,-1048.09,0.00016438,2]
[354203978,1740347432915,-1614.39,0.00016438,2]
[354203979,1740347432925,-500.0,0.00016438,2]
[354203980,1740347432934,-500.0,0.00016438,2]
[354203981,1740347432944,-500.0,0.00016438,2]
[354203982,1740347432954,-500.0,0.00016438,2]
[354203983,1740347432963,-500.0,0.00016438,2]
[354203984,1740347432972,-500.0,0.00016438,2]
[354203985,1740347432982,-500.0,0.00016438,2]
[354203986,1740347432991,-500.0,0.00016438,2]
[354203987,1740347433001,-500.0,0.00016438,2]
[354203988,1740347433010,-739.87,0.00016438,2]
[354203989,1740347433019,-500.0,0.00016438,2]
[354203990,1740347433029,-669.61,0.00016438,2]
[354203991,1740347433039,-162.532358,0.00016438,2]
[354203992,1740347433049,-500.0,0.00016438,2]
[354203993,1740347433059,-500.0,0.00016438,2]
[354203994,1740347433069,-500.0,0.00016438,2]
[354203995,1740347433079,-500.0,0.00016438,2]
[354203996,1740347433089,-157.72933869,0.00016438,2]
[354203997,1740347433100,-506.29704975,0.00016438,2]
[354203998,1740347433110,-502.75,0.00016438,2]
[354203999,1740347433120,-500.0,0.00016438,2]
[354204000,1740347433130,-500.0,0.00016438,2]
[354204001,1740347433140,-650.26,0.00016438,2]
[354204002,1740347433150,-500.0,0.00016438,2]
[354204003,1740347433160,-719.91,0.00016438,2]
[354204004,1740347433169,-500.0,0.00016438,2]
[354204005,1740347433179,-596.72,0.00016438,2]
[354204006,1740347433189,-500.0,0.00016438,2]
[354204007,1740347433199,-1053.87,0.00016438,2]
[354204008,1740347433208,-500.0,0.00016438,2]
[354204009,1740347433217,-500.0,0.00016438,2]
[354204010,1740347433227,-1130.96,0.00016438,2]
[354204011,1740347433241,-1241.26,0.00016438,2]
[354204012,1740347433251,-500.0,0.00016438,2]